[Event "Championnat du monde jeunes U12"]
[Date "2024.11.18"]
[White "Lee, Tsuen Jin Aiesec"]
[Black "Wang, Yu-Chi Xavier"]
[WhiteElo "1806"]
[BlackElo "1543"]
[Round "4.51"]
[Result "1-0"]
[TimeControl "5400+30"]

1. e4 {[%clk 1:30:58]} 1... e5 {[%clk 1:30:52]} 2. Nf3 {[%clk 1:31:25]} 2... Nc6
{[%clk 1:31:02]} 3. Bc4 {[%clk 1:31:52]} 3... Bc5 {[%clk 1:30:53]} 4. d3 {[%clk
1:32:18]} 4... Nf6 {[%clk 1:30:53]} 5. Bg5 {[%clk 1:32:46]} 5... h6 {[%clk
1:30:36]} 6. Bh4 {[%clk 1:33:14]} 6... g5 {[%clk 1:30:06]} 7. Bg3 {[%clk
1:33:41]} 7... d6 {[%clk 1:29:48]} 8. c3 {[%clk 1:34:09]} 8... Bg4 {[%clk
1:28:47]} 9. Nbd2 {[%clk 1:34:24]} 9... Qe7 {[%clk 1:25:35]} 10. b4 {[%clk
1:34:02]} 10... Bb6 {[%clk 1:25:57]} 11. a4 {[%clk 1:34:20]} 11... a6 {[%clk
1:25:28]} 12. Rb1 {[%clk 1:34:45]} 12... O-O {[%clk 1:22:54]} 13. Qc1 {[%clk
1:28:30]} 13... Nh5 {[%clk 1:13:17]} 14. h3 {[%clk 1:16:32]} 14... Nxg3 {[%clk
1:12:56]} 15. fxg3 {[%clk 1:16:49]} 15... Be6 {[%clk 1:11:38]} 16. g4 {[%clk
1:13:30]} 16... Rad8 {[%clk 1:04:18]} 17. Bd5 {[%clk 1:12:30]} 17... Bxd5 {[%clk
0:49:22]} 18. exd5 {[%clk 1:12:49]} 18... Nb8 {[%clk 0:49:11]} 19. Ne4 {[%clk
1:12:06]} 19... c6 {[%clk 0:48:06]} 20. c4 {[%clk 1:12:09]} 20... cxd5 {[%clk
0:46:37]} 21. cxd5 {[%clk 1:12:29]} 21... f5 {[%clk 0:40:34]} 22. gxf5 {[%clk
1:12:02]} 22... Rxf5 {[%clk 0:40:08]} 23. a5 {[%clk 1:12:26]} 23... Bd4 {[%clk
0:35:39]} 24. h4 {[%clk 1:08:51]} 24... g4 {[%clk 0:32:49]} 25. Nxd4 {[%clk
1:09:00]} 25... exd4 {[%clk 0:32:02]} 26. Qxh6 {[%clk 1:09:18]} 26... Re5 {[%clk
0:25:58]} 27. O-O {[%clk 1:09:19]} 27... Nd7 {[%clk 0:22:18]} 28. Rf6 {[%clk
0:48:42]} 28... Nf8 {[%clk 0:15:33]} 29. Rbf1 {[%clk 0:48:44]} 29... Qg7 {[%clk
0:15:05]} 30. Rg6 {[%clk 0:45:48]} 1-0

[Variant "Standard"]
[Site "Europe Echecs"]

[Event "Championnat du monde jeunes U12"]
[Date "2024.11.18"]
[White "Huang, Hao-Xuan"]
[Black "Liu, Richard Jingjie"]
[WhiteElo "1516"]
[BlackElo "1795"]
[Round "4.52"]
[Result "0-1"]
[TimeControl "5400+30"]

1. e4 {[%clk 1:30:57]} 1... e5 {[%clk 1:30:58]} 2. Nf3 {[%clk 1:31:19]} 2... Nc6
{[%clk 1:31:25]} 3. d4 {[%clk 1:31:14]} 3... exd4 {[%clk 1:31:49]} 4. Nxd4
{[%clk 1:31:25]} 4... Bc5 5. Be3 {[%clk 1:31:30]} 5... Bb6 {[%clk 1:32:20]} 6.
Bc4 {[%clk 1:28:11]} 6... Nf6 {[%clk 1:32:29]} 7. Nc3 {[%clk 1:27:08]} 7... d6
{[%clk 1:31:46]} 8. O-O {[%clk 1:25:44]} 8... Nxd4 {[%clk 1:30:34]} 9. Bxd4
{[%clk 1:25:27]} 9... Be6 {[%clk 1:29:48]} 10. Bxe6 {[%clk 1:17:41]} 10... fxe6
{[%clk 1:30:12]} 11. e5 {[%clk 1:16:52]} 11... dxe5 {[%clk 1:29:33]} 12. Bxe5
{[%clk 1:16:53]} 12... O-O {[%clk 1:29:50]} 13. Qe2 {[%clk 1:14:39]} 13... Qe7
{[%clk 1:27:28]} 14. Rfe1 {[%clk 1:09:28]} 14... Rae8 {[%clk 1:23:06]} 15. Bg3
{[%clk 1:06:40]} 15... Qb4 {[%clk 1:20:40]} 16. a3 {[%clk 0:58:33]} 16... Qg4
{[%clk 1:16:00]} 17. Qb5 {[%clk 0:52:49]} 17... Qg6 {[%clk 1:13:40]} 18. Re2
{[%clk 0:46:45]} 18... Nh5 {[%clk 1:04:47]} 19. Ne4 {[%clk 0:40:26]} 19... Qf5
{[%clk 0:59:47]} 20. Qb3 {[%clk 0:33:36]} 20... Nxg3 {[%clk 0:56:47]} 21. Qxg3
{[%clk 0:33:04]} 21... Qf4 {[%clk 0:55:43]} 22. Qb3 {[%clk 0:25:46]} 22... Rf7
{[%clk 0:52:03]} 23. c4 {[%clk 0:23:16]} 23... Bd4 {[%clk 0:48:44]} 24. Rd1
{[%clk 0:18:37]} 24... e5 {[%clk 0:48:27]} 25. c5 {[%clk 0:15:23]} 25... Kh8
{[%clk 0:46:56]} 26. Qc2 {[%clk 0:10:48]} 26... h5 {[%clk 0:46:20]} 27. Rd3
{[%clk 0:09:56]} 27... Ref8 {[%clk 0:44:53]} 28. Rf3 {[%clk 0:09:32]} 28... Qh6
{[%clk 0:45:09]} 29. Rh3 {[%clk 0:08:15]} 29... g6 {[%clk 0:42:30]} 30. g4
{[%clk 0:07:19]} 30... Rg8 {[%clk 0:35:45]} 31. g5 {[%clk 0:07:13]} 31... Qf8
{[%clk 0:34:31]} 32. Nf6 {[%clk 0:06:33]} 32... Rgg7 {[%clk 0:34:09]} 33. c6
{[%clk 0:06:33]} 33... b6 {[%clk 0:33:34]} 34. Re4 {[%clk 0:06:03]} 34... Rxf6
{[%clk 0:30:59]} 35. gxf6 {[%clk 0:06:22]} 35... Qxf6 {[%clk 0:31:28]} 36. Qd3
{[%clk 0:05:31]} 36... Qxf2+ {[%clk 0:30:33]} 37. Kh1 {[%clk 0:05:43]} 37...
Qg1# {[%clk 0:31:01]} 0-1

[Variant "Standard"]
[Site "Europe Echecs"]

[Event "Championnat du monde jeunes U12"]
[Date "2024.11.18"]
[White "Zhang, Sean"]
[Black "Lenoks, Martin Jr."]
[WhiteElo "1789"]
[BlackElo "1514"]
[Round "4.53"]
[Result "1-0"]
[TimeControl "5400+30"]

1. d4 {[%clk 1:30:56]} 1... Nf6 {[%clk 1:30:50]} 2. Bf4 {[%clk 1:31:23]} 2... g6
{[%clk 1:31:02]} 3. e3 {[%clk 1:31:44]} 3... Bg7 {[%clk 1:31:08]} 4. Nf3 {[%clk
1:32:06]} 4... O-O {[%clk 1:31:07]} 5. h3 {[%clk 1:32:30]} 5... a6 {[%clk
1:31:25]} 6. Be2 {[%clk 1:32:51]} 6... d6 {[%clk 1:31:45]} 7. O-O {[%clk
1:31:14]} 7... Nbd7 {[%clk 1:29:42]} 8. c4 {[%clk 1:26:45]} 8... Re8 {[%clk
1:28:09]} 9. Nc3 {[%clk 1:25:22]} 9... b6 {[%clk 1:25:55]} 10. Bh2 {[%clk
1:21:23]} 10... Bb7 {[%clk 1:21:58]} 11. Qc2 {[%clk 1:18:33]} 11... e5 {[%clk
1:20:38]} 12. d5 {[%clk 1:17:50]} 12... Rc8 {[%clk 0:57:51]} 13. Nd2 {[%clk
1:15:55]} 13... Nc5 {[%clk 0:46:42]} 14. b4 {[%clk 1:16:04]} 14... Ncd7 {[%clk
0:44:02]} 15. e4 {[%clk 1:14:47]} 15... c5 16. a3 {[%clk 1:09:20]} 16... Rb8
{[%clk 0:30:09]} 17. Bg3 {[%clk 1:06:04]} 17... Qc7 {[%clk 0:25:25]} 18. Rfc1
{[%clk 1:05:49]} 18... Ba8 {[%clk 0:19:18]} 19. Nf1 {[%clk 1:05:16]} 19... Qa7
{[%clk 0:16:54]} 20. Ne3 {[%clk 1:05:04]} 20... Qc7 {[%clk 0:15:38]} 21. Ng4
{[%clk 1:04:50]} 21... Bb7 {[%clk 0:15:11]} 22. b5 {[%clk 1:05:05]} 22... a5
{[%clk 0:12:52]} 23. Ne3 {[%clk 1:04:45]} 23... Bc8 {[%clk 0:12:25]} 24. f4
{[%clk 1:04:57]} 24... Ra8 {[%clk 0:11:42]} 25. f5 {[%clk 1:05:11]} 25... Rf8
{[%clk 0:11:43]} 26. Bh4 {[%clk 1:05:37]} 26... Bh6 {[%clk 0:10:39]} 27. Qd3
{[%clk 1:05:10]} 27... Bb7 {[%clk 0:08:51]} 28. Rf1 {[%clk 1:05:21]} 28... Bg7
{[%clk 0:09:09]} 29. Ng4 {[%clk 1:05:14]} 29... Nxg4 {[%clk 0:09:14]} 30. hxg4
{[%clk 1:05:12]} 30... h6 {[%clk 0:05:36]} 31. g5 {[%clk 1:04:27]} 31... hxg5
{[%clk 0:04:32]} 32. Bxg5 {[%clk 1:04:51]} 32... Bf6 {[%clk 0:04:53]} 33. Qg3
{[%clk 1:05:06]} 33... Bxg5 {[%clk 0:04:12]} 34. Qxg5 {[%clk 1:05:31]} 34... Qd8
{[%clk 0:03:57]} 35. f6 {[%clk 1:05:29]} 35... Kh7 {[%clk 0:01:59]} 36. Qh4+
{[%clk 1:05:31]} 36... Kg8 {[%clk 0:02:24]} 37. Bg4 {[%clk 1:05:56]} 37... Bc8
{[%clk 0:01:42]} 38. Bxd7 {[%clk 1:06:17]} 38... Bxd7 {[%clk 0:02:08]} 39. Qh6
{[%clk 1:06:43]} 39... Qxf6 {[%clk 0:01:22]} 40. Rxf6 {[%clk 1:07:03]} 40...
Rfe8 {[%clk 0:01:43]} 41. Raf1 {[%clk 1:07:24]} 41... Re7 {[%clk 0:01:56]} 42.
R1f3 {[%clk 1:07:35]} 42... Rb8 {[%clk 0:02:03]} 43. Rg3 {[%clk 1:07:44]} 43...
Be8 {[%clk 0:01:46]} 44. Rh3 {[%clk 1:08:03]} 44... Ra8 {[%clk 0:00:40]} 1-0

[Variant "Standard"]
[Site "Europe Echecs"]

[Event "Championnat du monde jeunes U12"]
[Date "2024.11.18"]
[White "Pennacchia, Domenico"]
[Black "Simiyu Jadon"]
[WhiteElo "1510"]
[BlackElo "1784"]
[Round "4.54"]
[Result "0-1"]
[TimeControl "5400+30"]

1. d4 {[%clk 1:30:36]} 1... d5 {[%clk 1:30:49]} 2. c4 {[%clk 1:30:18]} 2... e6
{[%clk 1:31:12]} 3. Nc3 {[%clk 1:30:30]} 3... Nf6 {[%clk 1:31:32]} 4. Bg5 {[%clk
1:30:32]} 4... Be7 {[%clk 1:31:50]} 5. e3 {[%clk 1:30:35]} 5... h6 {[%clk
1:32:12]} 6. Bxf6 {[%clk 1:30:54]} 6... Bxf6 {[%clk 1:32:32]} 7. Nf3 {[%clk
1:31:10]} 7... O-O {[%clk 1:32:51]} 8. Qd2 {[%clk 1:31:31]} 8... dxc4 {[%clk
1:32:59]} 9. h4 {[%clk 1:31:40]} 9... e5 {[%clk 1:32:25]} 10. O-O-O exd4 {[%clk
1:32:21]} 11. Nxd4 {[%clk 1:29:28]} 11... Bxd4 {[%clk 1:31:56]} 12. exd4 {[%clk
1:28:53]} 12... c6 {[%clk 1:29:04]} 13. Bxc4 {[%clk 1:27:39]} 13... b5 {[%clk
1:28:16]} 14. Bd3 {[%clk 1:27:41]} 14... a5 {[%clk 1:26:16]} 15. Bc2 {[%clk
1:26:05]} 15... Na6 {[%clk 1:18:31]} 16. Qd3 {[%clk 1:23:59]} 16... f5 {[%clk
1:18:51]} 17. Bb3+ {[%clk 1:23:29]} 17... Kh8 {[%clk 1:18:58]} 18. Qf3 {[%clk
1:23:09]} 18... a4 {[%clk 1:17:35]} 19. Bc2 {[%clk 1:22:46]} 19... Nb4 {[%clk
1:08:55]} 20. a3 {[%clk 1:19:35]} 20... Nxc2 {[%clk 1:03:02]} 21. Kxc2 {[%clk
1:19:57]} 21... Be6 {[%clk 1:03:10]} 22. Kb1 {[%clk 1:18:44]} 22... b4 {[%clk
1:02:43]} 23. axb4 {[%clk 1:18:37]} 23... a3 {[%clk 1:02:37]} 24. d5 {[%clk
1:18:03]} 24... cxd5 {[%clk 1:02:45]} 25. Nxd5 {[%clk 1:17:57]} 25... axb2
{[%clk 1:02:47]} 26. Kxb2 {[%clk 1:17:46]} 26... Qb8 {[%clk 1:02:20]} 27. Qf4
{[%clk 1:08:05]} 27... Ra2+ {[%clk 1:01:26]} 28. Kb1 {[%clk 1:07:26]} 28... Qa8
{[%clk 0:59:45]} 29. Qe5 {[%clk 1:03:56]} 29... Rxf2 {[%clk 0:58:25]} 30. Ne3
{[%clk 1:01:48]} 30... Qa2+ {[%clk 0:57:14]} 31. Kc1 {[%clk 1:02:12]} 31... Rc8+
{[%clk 0:57:26]} 0-1

[Variant "Standard"]
[Site "Europe Echecs"]

[Event "Championnat du monde jeunes U12"]
[Date "2024.11.18"]
[White "Sobirov, Feruzbek"]
[Black "Wang, Zihao(SH)"]
[WhiteElo "1487"]
[BlackElo "1773"]
[Round "4.55"]
[Result "0-1"]
[TimeControl "5400+30"]

1. d4 {[%clk 1:30:50]} 1... Nf6 {[%clk 1:30:54]} 2. Nc3 {[%clk 1:30:57]} 2... d5
{[%clk 1:31:18]} 3. Bf4 {[%clk 1:30:53]} 3... Bf5 {[%clk 1:31:42]} 4. f3 {[%clk
1:30:48]} 4... e6 {[%clk 1:31:27]} 5. g4 {[%clk 1:30:16]} 5... Bg6 {[%clk
1:31:45]} 6. h4 {[%clk 1:30:34]} 6... h5 {[%clk 1:30:43]} 7. g5 {[%clk 1:30:47]}
7... Ng8 {[%clk 1:25:10]} 8. e3 {[%clk 1:28:31]} 8... Bd6 {[%clk 1:24:24]} 9.
Bd3 {[%clk 1:25:41]} 9... Bxf4 {[%clk 1:22:13]} 10. exf4 {[%clk 1:25:59]} 10...
Ne7 {[%clk 1:22:06]} 11. Qe2 {[%clk 1:24:24]} 11... Nbc6 {[%clk 1:19:18]} 12.
Qe3 {[%clk 1:19:13]} 12... O-O {[%clk 1:15:46]} 13. Bxg6 {[%clk 1:18:12]} 13...
Nxg6 {[%clk 1:15:45]} 14. O-O-O {[%clk 1:18:16]} 14... Nce7 {[%clk 1:15:31]} 15.
Nge2 {[%clk 1:18:05]} 15... Nf5 {[%clk 1:15:46]} 16. Qf2 {[%clk 1:16:29]} 16...
Qd6 {[%clk 1:15:39]} 17. Nb5 {[%clk 1:11:21]} 17... Qd7 {[%clk 1:15:38]} 18. Na3
{[%clk 1:11:34]} 18... a6 {[%clk 1:15:47]} 19. c3 {[%clk 1:11:15]} 19... Qd6
{[%clk 1:16:05]} 20. Qh2 {[%clk 1:10:33]} 20... b6 {[%clk 1:12:52]} 21. Nc2
{[%clk 1:10:29]} 21... c5 {[%clk 1:12:47]} 22. Kb1 {[%clk 1:08:39]} 22... Rfb8
{[%clk 1:08:20]} 23. Qf2 {[%clk 1:07:42]} 23... Nxf4 {[%clk 0:59:49]} 24. Ne3
{[%clk 1:01:11]} 24... Nxe2 {[%clk 0:54:28]} 25. Qxe2 {[%clk 1:00:13]} 25... Ne7
{[%clk 0:53:39]} 26. Ng2 {[%clk 0:58:26]} 26... g6 {[%clk 0:51:51]} 27. Rhf1
{[%clk 0:52:11]} 27... c4 {[%clk 0:51:32]} 28. f4 {[%clk 0:51:49]} 28... Nf5
{[%clk 0:49:54]} 29. Qf2 {[%clk 0:51:32]} 29... b5 {[%clk 0:50:06]} 30. Ne3
{[%clk 0:50:46]} 30... Ne7 {[%clk 0:50:29]} 31. Nc2 {[%clk 0:50:28]} 31... a5
{[%clk 0:50:57]} 32. a3 {[%clk 0:50:49]} 32... Nc6 {[%clk 0:51:23]} 33. Qd2
{[%clk 0:50:45]} 33... b4 {[%clk 0:51:28]} 34. cxb4 {[%clk 0:51:04]} 34... axb4
{[%clk 0:51:55]} 35. axb4 {[%clk 0:51:21]} 35... Nxb4 {[%clk 0:50:55]} 36. Nxb4
{[%clk 0:51:41]} 36... Rxb4 {[%clk 0:51:23]} 37. Qc3 {[%clk 0:51:27]} 37... Rb3
{[%clk 0:51:49]} 38. Qc1 {[%clk 0:50:00]} 38... c3 {[%clk 0:51:16]} 39. Rf2
{[%clk 0:49:58]} 39... Qa3 {[%clk 0:50:58]} 40. Rdf1 {[%clk 0:49:10]} 40... Qa2+
{[%clk 0:50:56]} 0-1

[Variant "Standard"]
[Site "Europe Echecs"]

[Event "Championnat du monde jeunes U12"]
[Date "2024.11.18"]
[White "Mai, Duc Kien"]
[Black "Sharku, Uvejs"]
[WhiteElo "1771"]
[BlackElo "1516"]
[Round "4.56"]
[Result "1-0"]
[TimeControl "5400+30"]

1. e4 {[%clk 1:30:56]} 1... c6 {[%clk 1:30:47]} 2. d4 {[%clk 1:31:21]} 2... d5
{[%clk 1:30:41]} 3. Nc3 {[%clk 1:31:24]} 3... dxe4 {[%clk 1:30:40]} 4. Nxe4
{[%clk 1:31:35]} 4... Bf5 {[%clk 1:30:21]} 5. Ng3 {[%clk 1:31:58]} 5... Bg6
{[%clk 1:30:41]} 6. Nf3 {[%clk 1:31:44]} 6... Nd7 {[%clk 1:30:10]} 7. h4 {[%clk
1:32:00]} 7... h6 {[%clk 1:30:22]} 8. Bd3 {[%clk 1:31:42]} 8... Bxd3 {[%clk
1:29:42]} 9. Qxd3 {[%clk 1:31:58]} 9... Ngf6 {[%clk 1:28:47]} 10. Bf4 {[%clk
1:32:01]} 10... e6 {[%clk 1:27:43]} 11. O-O-O {[%clk 1:31:59]} 11... Be7 {[%clk
1:20:14]} 12. Kb1 {[%clk 1:27:25]} 12... b5 {[%clk 1:11:56]} 13. Ne4 {[%clk
1:24:15]} 13... Nd5 {[%clk 1:08:38]} 14. Bd2 {[%clk 1:05:44]} 14... h5 {[%clk
0:59:39]} 15. Neg5 {[%clk 0:58:52]} 15... N5f6 {[%clk 0:52:25]} 16. Nxe6 {[%clk
0:52:33]} 16... fxe6 {[%clk 0:51:07]} 17. Qg6+ {[%clk 0:52:57]} 17... Kf8 {[%clk
0:50:46]} 18. Ng5 {[%clk 0:53:21]} 1-0

[Variant "Standard"]
[Site "Europe Echecs"]

[Event "Championnat du monde jeunes U12"]
[Date "2024.11.18"]
[White "Mamarasulov, Husan"]
[Black "Lee, Daniel Joshua"]
[WhiteElo "1407"]
[BlackElo "1765"]
[Round "4.57"]
[Result "0-1"]
[TimeControl "5400+30"]

1. d4 {[%clk 1:30:57]} 1... d5 {[%clk 1:30:53]} 2. c4 {[%clk 1:31:20]} 2... e6
{[%clk 1:31:18]} 3. Nf3 {[%clk 1:31:46]} 3... a6 {[%clk 1:31:44]} 4. Bg5 {[%clk
1:31:55]} 4... Nf6 {[%clk 1:31:51]} 5. e3 {[%clk 1:31:16]} 5... Be7 {[%clk
1:31:24]} 6. Nc3 {[%clk 1:29:56]} 6... O-O {[%clk 1:30:43]} 7. Bd3 {[%clk
1:27:39]} 7... dxc4 {[%clk 1:31:06]} 8. Bxc4 {[%clk 1:27:56]} 8... b5 {[%clk
1:31:06]} 9. Bd3 {[%clk 1:27:01]} 9... Bb7 {[%clk 1:31:22]} 10. Qc2 {[%clk
1:26:19]} 10... h6 {[%clk 1:31:32]} 11. Bxf6 {[%clk 1:26:28]} 11... Bxf6 {[%clk
1:31:52]} 12. Ne4 {[%clk 1:24:20]} 12... Nd7 {[%clk 1:30:20]} 13. g4 {[%clk
1:20:20]} 13... c5 {[%clk 1:25:19]} 14. Rg1 {[%clk 1:11:15]} 14... cxd4 {[%clk
1:04:23]} 15. Nxf6+ {[%clk 1:11:24]} 15... gxf6 {[%clk 0:54:52]} 16. Nxd4 {[%clk
1:09:48]} 16... Rc8 {[%clk 0:53:07]} 17. Qd2 {[%clk 1:07:41]} 17... Ne5 {[%clk
0:47:52]} 18. f4 {[%clk 1:02:28]} 18... Nxd3+ {[%clk 0:37:16]} 19. Qxd3 {[%clk
1:02:09]} 19... e5 {[%clk 0:31:47]} 20. fxe5 {[%clk 1:02:33]} 20... fxe5 {[%clk
0:31:59]} 21. g5 {[%clk 1:02:45]} 21... exd4 {[%clk 0:31:30]} 22. gxh6+ {[%clk
1:03:10]} 22... Kh8 {[%clk 0:31:44]} 23. Rg7 {[%clk 0:24:29]} 23... Qh4+ {[%clk
0:31:58]} 24. Rg3 {[%clk 0:24:21]} 24... Rfe8 {[%clk 0:29:02]} 25. Kf1 {[%clk
0:17:32]} 25... dxe3 {[%clk 0:25:01]} 26. Rg7 {[%clk 0:14:29]} 26... Qf2# {[%clk
0:25:10]} 0-1

[Variant "Standard"]
[Site "Europe Echecs"]

[Event "Championnat du monde jeunes U12"]
[Date "2024.11.18"]
[White "Yusupov, Rauf"]
[Black "Mohd Firdaus, Firast Haiqal"]
[WhiteElo "1763"]
[BlackElo "1514"]
[Round "4.58"]
[Result "1/2-1/2"]
[TimeControl "5400+30"]

1. e4 {[%clk 1:30:58]} 1... d5 {[%clk 1:30:30]} 2. exd5 {[%clk 1:31:24]} 2...
Qxd5 {[%clk 1:30:35]} 3. Nc3 {[%clk 1:31:50]} 3... Qd8 {[%clk 1:30:51]} 4. d4
{[%clk 1:32:11]} 4... Nf6 {[%clk 1:30:34]} 5. Bc4 {[%clk 1:32:33]} 5... c6
{[%clk 1:30:04]} 6. Bf4 {[%clk 1:31:02]} 6... Bf5 {[%clk 1:29:33]} 7. Nf3 {[%clk
1:31:11]} 7... e6 {[%clk 1:29:27]} 8. Ne5 {[%clk 1:31:21]} 8... Nbd7 {[%clk
1:28:23]} 9. O-O {[%clk 1:30:55]} 9... Be7 {[%clk 1:24:02]} 10. Re1 {[%clk
1:29:44]} 10... O-O {[%clk 1:23:54]} 11. Bb3 {[%clk 1:24:45]} 11... Nxe5 {[%clk
1:21:06]} 12. Bxe5 {[%clk 1:19:30]} 12... Bd6 {[%clk 1:18:50]} 13. Qf3 {[%clk
1:15:30]} 13... Bxe5 {[%clk 1:17:05]} 14. dxe5 {[%clk 1:15:54]} 14... Nd5 {[%clk
1:15:30]} 15. Rad1 {[%clk 1:04:46]} 15... Qh4 {[%clk 1:05:07]} 16. Bxd5 {[%clk
0:59:52]} 16... Bg4 {[%clk 1:02:45]} 17. Qf4 {[%clk 0:57:13]} 17... g5 {[%clk
1:02:38]} 18. Qd4 {[%clk 0:57:10]} 18... Bxd1 {[%clk 1:02:38]} 19. Be4 {[%clk
0:51:07]} 19... Bg4 {[%clk 0:56:47]} 20. Bd3 {[%clk 0:40:30]} 20... Bf5 {[%clk
0:50:31]} 21. Ne4 {[%clk 0:40:30]} 21... Bxe4 {[%clk 0:50:09]} 22. Rxe4 {[%clk
0:37:59]} 22... Qh5 {[%clk 0:50:08]} 23. h4 {[%clk 0:36:05]} 23... Rfd8 {[%clk
0:39:42]} 24. Qe3 {[%clk 0:34:01]} 24... h6 {[%clk 0:32:42]} 25. f3 {[%clk
0:27:53]} 25... Kh8 {[%clk 0:30:58]} 26. hxg5 {[%clk 0:16:11]} 26... Qxg5 {[%clk
0:29:47]} 27. Qe1 {[%clk 0:11:29]} 27... h5 {[%clk 0:27:54]} 28. Rh4 {[%clk
0:05:58]} 28... Rg8 {[%clk 0:26:40]} 29. g4 {[%clk 0:03:52]} 29... Qf4 {[%clk
0:24:45]} 30. Rxh5+ {[%clk 0:04:14]} 30... Kg7 {[%clk 0:25:00]} 1/2-1/2

[Variant "Standard"]
[Site "Europe Echecs"]

[Event "Championnat du monde jeunes U12"]
[Date "2024.11.18"]
[White "Wang, Luis"]
[Black "Kim, Minwoo"]
[WhiteElo "1751"]
[BlackElo "1501"]
[Round "4.59"]
[Result "0-1"]
[TimeControl "5400+30"]

1. e4 {[%clk 1:30:57]} 1... e5 {[%clk 1:30:53]} 2. Nf3 {[%clk 1:31:22]} 2... Nc6
{[%clk 1:31:19]} 3. Bc4 {[%clk 1:31:43]} 3... Bc5 {[%clk 1:31:41]} 4. d3 {[%clk
1:31:21]} 4... d6 {[%clk 1:30:53]} 5. O-O {[%clk 1:29:43]} 5... Nf6 {[%clk
1:28:43]} 6. Nc3 {[%clk 1:28:11]} 6... Bg4 {[%clk 1:28:47]} 7. h3 {[%clk
1:26:56]} 7... Bh5 {[%clk 1:29:11]} 8. Bb5 {[%clk 1:26:04]} 8... Qd7 {[%clk
1:25:38]} 9. Nd5 {[%clk 1:25:36]} 9... a6 {[%clk 1:24:56]} 10. Nxf6+ {[%clk
1:23:19]} 10... gxf6 {[%clk 1:25:14]} 11. Bc4 {[%clk 1:22:58]} 11... Nd4 {[%clk
1:25:24]} 12. Kh2 {[%clk 1:21:17]} 12... Nxf3+ {[%clk 1:23:59]} 13. gxf3 {[%clk
1:21:37]} 13... O-O-O {[%clk 1:21:58]} 14. Be3 {[%clk 1:20:05]} 14... f5 {[%clk
1:21:20]} 15. Bg5 {[%clk 1:18:21]} 15... Rdf8 {[%clk 1:19:46]} 16. c3 {[%clk
1:16:54]} 16... Re8 {[%clk 1:18:13]} 17. d4 {[%clk 1:15:22]} 17... Rhg8 {[%clk
1:15:42]} 18. dxc5 {[%clk 1:13:06]} 18... Rxg5 {[%clk 1:15:58]} 19. Qd2 {[%clk
1:13:05]} 19... f4 {[%clk 1:14:56]} 20. cxd6 {[%clk 1:07:42]} 20... Bxf3 {[%clk
1:14:47]} 21. Qd3 {[%clk 1:07:02]} 21... Rg2+ {[%clk 1:13:12]} 22. Kh1 {[%clk
1:06:51]} 22... Qxh3# {[%clk 1:13:01]} 0-1

[Variant "Standard"]
[Site "Europe Echecs"]

[Event "Championnat du monde jeunes U12"]
[Date "2024.11.18"]
[White "Wang, William Kaiyuan"]
[Black "Son, Juwon"]
[WhiteElo "1715"]
[BlackElo "1448"]
[Round "4.60"]
[Result "1-0"]
[TimeControl "5400+30"]

1. e4 {[%clk 1:30:59]} 1... c5 {[%clk 1:27:57]} 2. Nf3 {[%clk 1:31:21]} 2... Nc6
{[%clk 1:28:26]} 3. Bb5 {[%clk 1:31:46]} 3... g6 {[%clk 1:28:53]} 4. c3 {[%clk
1:32:09]} 4... Bg7 {[%clk 1:29:06]} 5. d4 {[%clk 1:32:20]} 5... cxd4 {[%clk
1:28:59]} 6. cxd4 {[%clk 1:32:44]} 6... e6 {[%clk 1:24:56]} 7. O-O {[%clk
1:29:18]} 7... Qb6 {[%clk 1:16:25]} 8. Bxc6 {[%clk 1:22:51]} 8... bxc6 {[%clk
1:07:58]} 9. Nc3 {[%clk 1:21:23]} 9... d5 {[%clk 1:02:53]} 10. Re1 {[%clk
1:16:59]} 10... Nf6 {[%clk 1:01:52]} 11. e5 {[%clk 1:11:44]} 11... Nd7 {[%clk
1:02:15]} 12. b3 {[%clk 1:07:09]} 12... O-O {[%clk 1:01:55]} 13. g4 {[%clk
0:58:36]} 13... Qc7 {[%clk 0:50:37]} 14. h4 {[%clk 0:55:35]} 14... f6 {[%clk
0:43:15]} 15. Bf4 {[%clk 0:48:00]} 15... fxe5 {[%clk 0:42:47]} 16. Bxe5 {[%clk
0:48:23]} 16... Nxe5 {[%clk 0:42:26]} 17. Nxe5 {[%clk 0:48:17]} 17... Bxe5
{[%clk 0:41:41]} 18. Rxe5 {[%clk 0:48:46]} 18... c5 {[%clk 0:38:16]} 19. Rc1
{[%clk 0:47:48]} 19... Bd7 {[%clk 0:34:46]} 20. h5 {[%clk 0:43:40]} 20... cxd4
{[%clk 0:31:22]} 21. Qxd4 {[%clk 0:43:47]} 21... Qb6 {[%clk 0:31:43]} 22. Qd2
{[%clk 0:43:33]} 22... Rf6 {[%clk 0:30:15]} 23. Nxd5 {[%clk 0:42:19]} 23... exd5
{[%clk 0:24:39]} 24. Qxd5+ {[%clk 0:42:44]} 24... Kg7 {[%clk 0:24:52]} 25. Qxd7+
{[%clk 0:38:33]} 25... Rf7 {[%clk 0:25:09]} 26. h6+ {[%clk 0:37:38]} 26... Kg8
{[%clk 0:24:47]} 27. Rc8+ {[%clk 0:37:21]} 27... Rxc8 {[%clk 0:25:05]} 28. Qxc8+
{[%clk 0:37:47]} 28... Rf8 {[%clk 0:25:24]} 29. Qe6+ {[%clk 0:38:11]} 29... Qxe6
{[%clk 0:25:34]} 30. Rxe6 {[%clk 0:38:40]} 30... Kf7 {[%clk 0:25:16]} 31. Rc6
{[%clk 0:39:01]} 1-0

[Variant "Standard"]
[Site "Europe Echecs"]